bitfinex/quotes_ETHUSD_20250923
["timestamp","ask_amount","ask_price","bid_price","bid_amount"]
[1758633432194,24.54949314,4202.0,4201.9,0.004]
[1758633432782,24.99739314,4202.0,4201.9,0.004]
[1758633433973,25.18229314,4202.0,4201.9,0.004]
[1758633434311,24.99739314,4202.0,4201.9,0.004]
[1758633434994,25.09286298,4202.0,4201.9,0.004]
[1758633435194,2.49827577,4201.9,4201.8,0.004]
[1758633435393,2.3799324,4201.8,4201.7,0.004]
[1758633435596,6.17198905,4201.7,4201.5,8.31749813]
[1758633435794,28.80486063,4201.6,4201.5,8.31749813]
[1758633436103,29.42271935,4201.6,4201.5,8.31749813]
[1758633437009,28.78991935,4201.6,4201.5,8.31749813]
[1758633437209,31.23275695,4201.6,4201.5,8.31749813]
[1758633438722,21.6987197,4201.6,4201.5,8.31749813]
[1758633438923,31.23275695,4201.6,4201.5,8.31749813]
[1758633439538,31.86555695,4201.6,4201.5,8.31749813]
[1758633440025,31.68065695,4201.6,4201.5,8.31749813]
[1758633440895,31.67985695,4201.6,4201.5,8.31749813]
[1758633442663,31.23195695,4201.6,4201.5,8.31749813]
[1758633443040,31.60512143,4201.6,4201.5,8.31749813]
[1758633443245,32.05302143,4201.6,4201.5,8.31749813]
[1758633443437,32.23792143,4201.6,4201.5,8.31749813]
[1758633444039,33.33918428,4201.6,4201.5,1.61899626]
[1758633444238,33.33918428,4201.6,4201.5,1.44016755]
[1758633445060,34.05529009,4201.6,4201.5,1.44016755]
[1758633445261,34.05603702,4201.6,4201.5,1.44016755]
[1758633446232,36.56503702,4201.6,4201.5,1.44416755]
[1758633446928,36.38013702,4201.6,4201.5,1.44416755]
[1758633447132,36.56503702,4201.6,4201.5,1.44416755]
[1758633447873,35.93223702,4201.6,4201.5,1.44416755]
[1758633448082,36.56503702,4201.6,4201.5,1.44416755]
[1758633450741,26.08893692,4201.6,4201.5,2.13126755]
[1758633451126,26.08893692,4201.6,4201.5,1.68256755]
[1758633451369,26.08893692,4201.6,4201.5,1.44416755]
[1758633451771,26.08893692,4201.6,4201.5,1.68256755]
[1758633451941,26.08893692,4201.6,4201.5,2.13126755]
[1758633451942,22.07263111,4201.6,4201.5,2.13126755]
[1758633452142,24.55146663,4201.6,4201.5,2.13126755]
[1758633454143,24.55146663,4201.6,4201.5,1.68256755]
[1758633455451,24.92462921,4201.6,4201.5,1.68256755]
[1758633455645,24.92462921,4201.6,4201.5,1.44416755]
[1758633456658,4.52170867,4201.6,4201.5,1.44416755]
[1758633456869,22.48179161,4201.6,4201.5,1.44416755]
[1758633458360,22.10862903,4201.6,4201.5,1.44416755]
[1758633458864,18.12262903,4201.6,4201.5,2.13126755]
[1758633459066,22.10862903,4201.6,4201.5,2.13126755]
[1758633460270,24.55146663,4201.6,4201.5,2.13126755]
[1758633461338,24.92462823,4201.6,4201.5,2.13126755]
[1758633461553,24.92513642,4201.6,4201.5,2.13126755]
[1758633463275,24.92513642,4201.6,4201.5,1.68256755]
[1758633463483,24.92513642,4201.6,4201.5,1.44416755]
[1758633464272,24.92513642,4201.6,4201.5,1.67936755]
[1758633464474,24.55197482,4201.6,4201.5,1.67936755]
[1758633465568,24.5521511,4201.6,4201.5,1.67936755]
[1758633465773,24.55145688,4201.6,4201.5,1.67936755]
[1758633466277,34.08549413,4201.6,4201.5,1.67936755]
[1758633468878,34.08549413,4201.6,4201.5,2.13576755]
[1758633469057,22.17141119,4201.6,4201.5,2.13576755]
[1758633469257,12.89057359,4201.6,4201.5,2.13576755]
[1758633469484,21.31561928,4201.6,4201.5,1.44416755]
[1758633470152,21.31561928,4201.6,4201.5,1.67936755]
[1758633472180,20.95828294,4201.6,4201.5,1.67936755]
[1758633472483,21.31559147,4201.6,4201.5,1.67936755]
[1758633473185,20.95828294,4201.6,4201.5,1.67936755]
[1758633473690,32.86346021,4201.6,4201.5,1.44416755]
[1758633473979,33.65546021,4201.6,4201.5,1.44416755]
[1758633476185,2.38021564,4201.3,4201.2,0.2352]
[1758633476387,2.38021564,4201.3,4201.0,0.4604]
[1758633476388,0.353157,4201.1,4201.0,0.2392]
[1758633476591,6.29166791,4201.1,4201.0,0.4604]
[1758633476761,6.71848596,4201.1,4201.0,0.4604]
[1758633476960,6.94179201,4201.1,4201.0,0.4604]
[1758633477161,7.07577564,4201.1,4201.0,0.6956]
[1758633477889,7.07577564,4201.1,4201.0,0.004]
[1758633478565,7.1946458,4201.1,4201.0,0.004]
[1758633478893,9.4173778,4201.1,4201.0,0.004]
[1758633479260,12.4173778,4201.1,4201.0,0.004]
[1758633479823,13.2093778,4201.1,4201.0,0.004]
[1758633479974,9.53403725,4200.8,4200.6,0.6956]
[1758633480161,6.53563096,4200.7,4200.6,0.4604]
[1758633480369,6.52068968,4200.7,4200.6,0.004]
[1758633480782,6.52068968,4200.7,4200.6,0.2392]
[1758633480983,6.52068968,4200.7,4200.6,0.6956]
[1758633482300,0.47568968,4200.7,4200.6,3.07621229]
[1758633482462,19.05472693,4200.7,4200.6,3.07621229]
[1758633482659,3.35728968,4200.7,4200.6,3.07621229]
[1758633482862,7.34228968,4200.7,4200.6,3.07621229]
[1758633483099,4.34228968,4200.7,4200.6,3.07621229]
[1758633483312,4.34228968,4200.7,4200.6,17.57621229]
[1758633485987,0.35728968,4200.7,4200.6,17.57621229]
[1758633486192,4.34228968,4200.7,4200.6,17.57621229]
[1758633488616,4.34228968,4200.7,4200.6,0.6956]
[1758633489185,4.34228968,4200.7,4200.6,3.07621229]
[1758633489715,4.34228968,4200.7,4200.6,0.6956]
[1758633490016,4.34217279,4200.7,4200.6,3.07621229]
[1758633490214,4.34217279,4200.7,4200.6,0.6956]
[1758633490516,13.87621004,4200.7,4200.6,0.6956]
[1758633490818,4.34137279,4200.7,4200.6,3.07621229]
[1758633491019,4.34137279,4200.7,4200.6,0.2392]
[1758633491396,4.34137279,4200.7,4200.6,2.61981229]
[1758633491596,7.34137279,4200.7,4200.6,0.004]
[1758633491806,7.45977279,4200.7,4200.6,0.004]
[1758633492183,8.51472007,4200.7,4200.6,0.004]
[1758633493630,8.29153091,4200.7,4200.6,0.004]
[1758633493838,8.51468081,4200.7,4200.6,0.004]
[1758633498593,3.47473353,4200.7,4200.6,2.62201229]
[1758633498789,5.53473353,4200.7,4200.6,3.07861229]
[1758633499029,9.40033353,4200.7,4200.6,3.07861229]
[1758633499892,9.40033353,4200.7,4200.6,17.57861229]
[1758633501126,0.35633353,4200.7,4200.6,17.57861229]
[1758633501435,4.34033353,4200.7,4200.6,17.57861229]
[1758633502619,4.34133353,4200.7,4200.6,17.57861229]
[1758633502819,4.34133353,4200.7,4200.6,3.07861229]
[1758633503240,4.34133353,4200.7,4200.6,17.57861229]
[1758633506117,4.34191226,4200.7,4200.6,17.57861229]
[1758633506443,4.34191226,4200.7,4200.6,3.07861229]
[1758633508512,4.34191226,4200.7,4200.6,3.19701229]
[1758633510047,4.34191226,4200.7,4200.6,17.69701229]
[1758633511254,4.34191226,4200.7,4200.6,0.004]
[1758633511255,15.97196075,4200.7,4200.6,0.004]
[1758633511454,16.52806075,4200.7,4200.6,0.004]
[1758633511837,16.34316075,4200.7,4200.6,0.004]
[1758633512860,19.34316075,4200.7,4200.6,0.004]
[1758633513773,19.34316075,4200.7,4200.6,2.38461229]
[1758633514259,19.12009059,4200.7,4200.6,2.38461229]
[1758633514453,7.46035303,4200.7,4200.6,2.38461229]
[1758633514656,7.45935303,4200.7,4200.6,2.38461229]
[1758633515740,7.45855303,4200.7,4200.6,2.38461229]
[1758633516038,7.45855303,4200.7,4200.6,2.62201229]
[1758633516540,7.45855303,4200.7,4200.6,3.07861229]
[1758633518437,3.47555303,4200.7,4200.6,2.62201229]
[1758633518653,7.34015303,4200.7,4200.6,3.07861229]
[1758633518852,7.34015303,4200.7,4200.6,17.57861229]
[1758633519371,18.78530152,4200.7,4200.6,16.88461229]
[1758633519677,19.22300152,4200.7,4200.6,2.38461229]
[1758633520170,7.77785303,4200.7,4200.6,2.38461229]
[1758633520553,7.77785958,4200.7,4200.6,2.38461229]
[1758633520751,7.77785958,4200.7,4200.6,0.004]
[1758633520960,7.89625958,4200.7,4200.6,2.38461229]
[1758633521346,7.45855958,4200.7,4200.6,2.38461229]
[1758633524779,7.45855958,4200.7,4200.6,0.004]
[1758633524962,7.45855958,4200.7,4200.6,2.38461229]
[1758633525547,7.45855958,4200.7,4200.6,2.61301229]
[1758633526048,3.35715958,4200.7,4200.6,3.06061229]
[1758633526247,7.34015958,4200.7,4200.6,3.06061229]
[1758633526448,7.34015958,4200.7,4200.6,17.56061229]
[1758633526671,7.34015958,4200.7,4200.6,16.88461229]
[1758633527272,7.34015958,4200.7,4200.6,14.504]
[1758633527472,7.34015958,4200.7,4200.6,0.004]
[1758633527644,7.34015958,4200.7,4200.6,2.38461229]
[1758633527976,10.14321039,4200.7,4200.6,0.004]
[1758633528281,5.380839,4200.2,4200.1,0.02]
[1758633528485,7.64922243,4200.2,4200.1,0.02]
[1758633528789,10.68326143,4200.2,4200.1,0.02]
[1758633529000,13.12609903,4200.2,4200.1,0.02]
[1758633529287,13.12603301,4200.2,4200.1,0.02]
[1758633529488,13.1258755,4200.2,4200.1,0.02]
[1758633531280,13.12559922,4200.2,4200.1,0.02]
[1758633531454,12.81633637,4200.2,4200.1,0.02]
[1758633535487,13.60833637,4200.2,4200.1,0.02]
[1758633538676,12.95461721,4200.2,4200.1,0.02]
[1758633538881,12.95425176,4200.2,4200.1,0.02]
[1758633539300,10.57341276,4200.2,4200.1,0.02]
[1758633539601,12.95425176,4200.2,4200.1,0.02]
[1758633539973,13.42255176,4200.2,4200.1,0.02]
[1758633540196,13.60745176,4200.2,4200.1,0.02]
[1758633540699,13.60665176,4200.2,4200.1,0.02]
[1758633543006,13.60665176,4200.2,4200.1,0.024]
[1758633543380,7.05871276,4200.2,4200.1,0.024]
[1758633543580,13.42255176,4200.2,4200.1,0.024]
[1758633544710,5.79841276,4200.2,4200.1,0.2524]
[1758633544910,20.84372365,4200.2,4200.1,0.024]
[1758633545114,23.22456265,4200.2,4200.1,0.024]
[1758633545317,24.66976265,4200.2,4200.1,0.024]
[1758633547808,24.48486265,4200.2,4200.1,0.024]
[1758633548316,24.66976265,4200.2,4200.1,0.024]
[1758633548617,2.38112246,4199.7,4199.6,0.004]
[1758633548804,18.17978739,4199.7,4199.6,0.004]
[1758633549122,21.16484611,4199.7,4199.6,0.004]
[1758633549619,21.63314611,4199.7,4199.6,0.004]
[1758633550784,19.25202365,4199.7,4199.6,0.004]
[1758633550988,18.78372365,4199.7,4199.6,0.231]
[1758633551184,18.78372365,4199.7,4199.6,0.701]
[1758633552386,21.61854611,4199.7,4199.6,0.004]
[1758633552714,19.71913097,4199.7,4199.6,0.004]
[1758633552911,22.16196857,4199.7,4199.6,0.004]
[1758633553710,19.78084611,4199.7,4199.6,0.004]
[1758633553911,19.32744503,4199.7,4199.6,0.004]
[1758633554111,19.32744503,4199.7,4199.6,0.7007]
[1758633554437,21.38744503,4199.7,4199.6,0.7007]
[1758633554637,18.94460743,4199.7,4199.6,0.7007]
[1758633555935,12.90160743,4199.7,4199.6,0.7007]
[1758633556337,18.94460743,4199.7,4199.6,0.7007]
[1758633556504,18.94460743,4199.7,4199.6,0.004]
[1758633556704,18.94460743,4199.7,4199.6,0.2307]
[1758633556929,18.94460743,4199.7,4199.6,0.7007]
[1758633557818,19.34808164,4199.7,4199.6,0.004]
[1758633558655,21.7292041,4199.7,4199.6,0.004]
[1758633558822,19.34808164,4199.7,4199.6,0.004]
[1758633559620,19.34808164,4199.7,4199.6,0.2307]
[1758633559826,21.7292041,4199.7,4199.6,0.2307]
[1758633560031,21.7292041,4199.7,4199.6,0.004]
[1758633560707,19.34808164,4199.7,4199.6,0.004]
[1758633560912,21.7292041,4199.7,4199.6,0.7007]
[1758633561141,21.7292041,4199.7,4199.6,0.004]
[1758633562749,19.34808164,4199.7,4199.6,0.004]
[1758633562918,21.7292041,4199.7,4199.6,0.004]
[1758633563631,19.34808164,4199.7,4199.6,0.004]
[1758633564038,19.34808164,4199.7,4199.6,0.2307]
[1758633564238,21.7292041,4199.7,4199.6,0.2307]
[1758633564752,19.34808164,4199.7,4199.6,0.004]
[1758633564919,0.35587408,4199.7,4199.6,0.7007]
[1758633565111,0.48287408,4199.7,4199.6,3.08187915]
[1758633565331,0.48287408,4199.7,4199.6,17.58187915]
[1758633565526,0.49781536,4199.7,4199.6,0.004]
[1758633566051,3.49701536,4199.7,4199.6,0.004]
[1758633568752,5.87813782,4199.7,4199.6,0.004]
[1758633568931,6.10319654,4199.7,4199.6,0.004]
[1758633569552,3.72207408,4199.7,4199.6,0.004]
[1758633569720,3.73701536,4199.7,4199.6,0.004]
[1758633570121,6.17985296,4199.7,4199.6,0.004]
[1758633570430,6.16491168,4199.7,4199.6,0.004]
[1758633570643,5.92491168,4199.7,4199.6,0.004]
[1758633571460,6.16491168,4199.7,4199.6,0.004]
[1758633571619,8.99973414,4199.7,4199.6,0.004]
[1758633573445,9.79173414,4199.7,4199.6,0.004]
[1758633574730,9.33803414,4199.7,4199.6,0.004]
[1758633574942,7.41061168,4199.7,4199.6,0.004]
[1758633575455,9.79173414,4199.7,4199.6,0.004]
[1758633576457,6.95691168,4199.7,4199.6,0.004]
[1758633576658,6.71691168,4199.7,4199.6,0.004]
[1758633576830,9.09803414,4199.7,4199.6,0.004]
[1758633577472,6.71691168,4199.7,4199.6,0.004]
[1758633578772,9.042,4199.7,4199.6,0.004]
[1758633578972,9.042,4199.7,4199.6,0.7007]
[1758633579274,9.042,4199.7,4199.6,0.004]
[1758633581573,9.26528574,4199.7,4199.6,0.004]
[1758633583969,9.26528574,4199.7,4199.6,0.4677]
[1758633584276,9.26528574,4199.7,4199.6,0.004]
[1758633585571,12.71082636,4199.7,4199.6,0.004]
[1758633585779,13.16082636,4199.7,4199.6,0.004]
[1758633586506,0.792,4199.6,4199.1,0.02]
[1758633586668,14.92713933,4199.2,4199.1,0.02]
[1758633586867,19.26640499,4199.2,4199.1,0.02]
[1758633587202,19.77341747,4199.2,4199.1,0.02]
[1758633588760,19.77334987,4199.2,4199.1,0.02]
[1758633589297,2.3816449,4198.8,4198.2,0.6935]
[1758633589483,0.1184,4198.6,4198.2,3.07545327]
[1758633589688,3.0,4198.4,4198.2,2.38195327]
[1758633589888,0.1184,4198.6,4198.2,2.38195327]
[1758633589889,7.33919806,4198.3,4198.2,2.38195327]
[1758633590510,7.33919806,4198.3,4198.2,0.6935]
[1758633590668,7.33839806,4198.3,4198.2,0.6935]
[1758633590868,16.88399828,4198.3,4198.2,0.6935]
[1758633593317,16.88399828,4198.3,4198.2,15.1935]
[1758633593519,16.88399828,4198.3,4198.2,14.9637]
[1758633593809,16.88399828,4198.3,4198.2,0.4637]
[1758633594017,16.88371754,4198.3,4198.2,0.4637]
[1758633594914,3.0,4198.2,4198.1,0.02]
[1758633595113,3.35678419,4198.2,4198.1,2.86572996]
[1758633595494,3.35678419,4198.2,4198.1,0.7135]
[1758633595818,3.35678913,4198.2,4198.1,3.09552996]
[1758633596317,3.35678913,4198.2,4198.1,2.86572996]
[1758633597415,3.0,4198.2,4198.1,0.4837]
[1758633597912,3.35650755,4198.2,4198.1,14.9837]
[1758633598079,3.35650755,4198.2,4198.1,17.36572996]
[1758633598278,3.13369033,4198.2,4198.1,17.59552996]
[1758633598514,3.0,4198.2,4198.1,17.59552996]
[1758633598719,3.3565112,4198.2,4198.1,17.59552996]
[1758633599510,7.33850347,4198.2,4198.1,17.59552996]
[1758633600217,7.33850347,4198.2,4198.1,15.2135]
[1758633600526,7.33850347,4198.2,4198.1,16.90202996]
[1758633601019,7.33850347,4198.2,4198.1,17.36572996]
[1758633601209,7.33850347,4198.2,4198.1,16.90202996]
[1758633601582,7.33850347,4198.2,4198.1,17.36972996]
[1758633602088,7.33850347,4198.2,4198.1,3.09952996]
[1758633602808,7.33850347,4198.2,4198.1,0.024]
[1758633602809,7.33847641,4198.2,4198.1,0.024]
[1758633603120,5.25100009,4198.2,4198.1,0.024]
[1758633603321,9.39947641,4198.2,4198.1,0.024]
[1758633604927,9.39941955,4198.2,4198.1,0.024]
[1758633606521,2.41741955,4198.2,4198.1,3.09952996]
[1758633606723,0.35641955,4198.2,4198.1,3.09952996]
[1758633607020,7.33839124,4198.2,4198.1,17.59952996]
[1758633608347,3.35639124,4198.2,4198.1,17.59952996]
[1758633608552,7.33839124,4198.2,4198.1,17.59952996]
[1758633610350,7.33839124,4198.2,4198.1,3.09952996]
[1758633610645,7.33839124,4198.2,4198.1,2.86972996]
[1758633610846,7.33839124,4198.2,4198.1,16.90602996]
[1758633611161,7.33839124,4198.2,4198.1,17.61242996]
[1758633611652,16.88412459,4198.2,4198.1,16.90602996]
[1758633611858,16.88412459,4198.2,4198.1,17.37432996]
[1758633612626,7.33839124,4198.2,4198.1,17.61242996]
[1758633613035,7.33863731,4198.2,4198.1,17.73082996]
[1758633613248,7.33863731,4198.2,4198.1,17.49272996]
[1758633613863,7.33863731,4198.2,4198.1,17.37432996]
[1758633614026,19.03040184,4198.2,4198.1,14.524]
[1758633614960,18.79580184,4198.2,4198.1,16.90602996]
[1758633615128,19.03040184,4198.2,4198.1,16.90602996]
[1758633615432,19.03040184,4198.2,4198.1,14.524]
[1758633615629,19.02960184,4198.2,4198.1,14.524]
[1758633616029,19.45920184,4198.2,4198.1,0.024]
[1758633616230,20.00935996,4198.2,4198.1,0.024]
[1758633617557,22.39133318,4198.2,4198.1,0.024]
[1758633617761,23.18333318,4198.2,4198.1,0.024]
[1758633617964,23.49255826,4198.2,4198.1,0.024]
[1758633619864,0.792,4198.0,4197.1,0.02]
[1758633620033,3.0,4197.2,4197.1,0.02]
[1758633620233,11.79711933,4197.2,4197.1,0.02]
[1758633620434,9.63423731,4197.2,4197.1,0.02]
[1758633620760,12.44637805,4197.2,4197.1,0.02]
[1758633623389,10.06383731,4197.2,4197.1,0.02]
[1758633623594,14.83672122,4197.2,4197.1,0.02]
[1758633624662,12.45418048,4197.2,4197.1,0.02]
[1758633625064,5.41763731,4197.2,4197.1,0.02]
[1758633625389,9.39963731,4197.2,4197.1,0.02]
[1758633625572,9.63423731,4197.2,4197.1,0.02]
[1758633626961,9.39963731,4197.2,4197.1,0.02]
[1758633627385,5.41763731,4197.2,4197.1,0.02]
[1758633627574,9.39963731,4197.2,4197.1,0.4883]
[1758633627780,9.39963731,4197.2,4197.1,0.7264]
[1758633628196,9.39963731,4197.2,4197.1,3.1089975]
[1758633629396,4.33863731,4197.2,4197.1,3.1089975]
[1758633629576,0.1184,4197.5,4197.2,2.38254074]
[1758633629780,6.1763316,4197.4,4197.3,3.08888397]
[1758633630093,4.1153316,4197.4,4197.3,3.08888397]
[1758633630266,4.1153316,4197.4,4197.3,17.58888397]
[1758633631063,0.1333316,4197.4,4197.3,17.58888397]
[1758633631259,4.1153316,4197.4,4197.3,17.58888397]
[1758633631472,4.11535008,4197.4,4197.3,17.58888397]
[1758633635997,0.13335008,4197.4,4197.3,17.58888397]
[1758633636172,4.11535008,4197.4,4197.3,17.70728397]
[1758633638509,4.33782389,4197.4,4197.3,17.00088397]
[1758633638704,4.33782389,4197.4,4197.3,2.50088397]
[1758633639214,4.33782389,4197.4,4197.3,17.00088397]
[1758633640604,4.57162389,4197.4,4197.3,16.88248397]
[1758633641392,4.57162389,4197.4,4197.3,16.88648397]
[1758633644627,4.56862389,4197.4,4197.3,16.88648397]
[1758633645206,4.33702389,4197.4,4197.3,16.88648397]
[1758633645401,4.56862389,4197.4,4197.3,16.88648397]
[1758633645822,5.00802389,4197.4,4197.3,16.88648397]
[1758633646325,4.56862389,4197.4,4197.3,16.88648397]
[1758633648631,4.43607381,4197.4,4197.3,16.88648397]
[1758633648815,4.20447381,4197.4,4197.3,16.88648397]
[1758633649016,4.20447381,4197.4,4197.3,2.38648397]
[1758633649399,4.20447381,4197.4,4197.3,17.33518397]
[1758633649733,4.20447381,4197.4,4197.3,16.88648397]
[1758633651016,4.20447381,4197.4,4197.3,17.33518397]
[1758633651221,4.20447381,4197.4,4197.3,17.58398397]
[1758633651421,4.20447381,4197.4,4197.3,17.33518397]
[1758633652137,0.22247381,4197.4,4197.3,16.88648397]
[1758633652345,4.20347381,4197.4,4197.3,17.58398397]
[1758633652639,4.33719405,4197.4,4197.3,3.08398397]
[1758633653007,4.33719405,4197.4,4197.3,17.58398397]
[1758633653547,0.35619405,4197.4,4197.3,17.58398397]
[1758633653734,4.33719405,4197.4,4197.3,17.70238397]
[1758633654522,0.35619405,4197.4,4197.3,17.70238397]
[1758633654728,4.11472024,4197.4,4197.3,17.70238397]
[1758633655243,4.33763181,4197.4,4197.3,17.70238397]
[1758633655604,16.02639634,4197.4,4197.3,2.38648397]
[1758633655804,16.46579634,4197.4,4197.3,2.38648397]
[1758633656029,16.02641031,4197.4,4197.3,2.38648397]
[1758633656235,16.46581031,4197.4,4197.3,2.38648397]
[1758633656613,8.66802141,4197.4,4197.3,2.38648397]
[1758633656813,20.12518594,4197.4,4197.3,2.38648397]
[1758633658939,19.76854016,4197.4,4197.3,2.38648397]
[1758633659141,20.1256022,4197.4,4197.3,2.38648397]
[1758633659443,19.76854016,4197.4,4197.3,0.004]
[1758633659644,20.12558003,4197.4,4197.3,0.004]
[1758633659867,22.15096737,4197.4,4197.3,0.004]
[1758633660274,22.94296737,4197.4,4197.3,0.004]
[1758633660580,2.38254074,4197.2,4197.1,0.02]
[1758633660762,11.82131962,4197.2,4197.1,0.02]
[1758633660976,12.47737834,4197.2,4197.1,0.02]
[1758633661282,13.26937834,4197.2,4197.1,0.02]
[1758633661489,14.45716453,4196.2,4196.1,0.02]
[1758633661637,18.43816453,4196.2,4196.1,0.02]
[1758633661834,18.66976453,4196.2,4196.1,2.40316532]
[1758633662034,18.43816453,4196.2,4196.1,2.40316532]
[1758633662272,6.981,4196.2,4196.1,2.40316532]
[1758633662639,3.0,4196.2,4196.1,2.40316532]
[1758633662976,7.33791587,4196.2,4196.1,3.10066532]
[1758633663737,4.33891587,4196.2,4196.1,3.10066532]
[1758633665475,4.33811587,4196.2,4196.1,3.10066532]
[1758633665641,4.33811587,4196.2,4196.1,3.21906532]
[1758633666087,4.20507242,4196.2,4196.1,3.21906532]
[1758633666480,4.20507242,4196.2,4196.1,3.93576991]
[1758633666779,4.20507242,4196.2,4196.1,3.95960156]
[1758633666984,3.982,4196.2,4196.1,3.95960156]
[1758633667189,0.1184,4197.0,4196.9,2.38271104]
[1758633667404,9.38435879,4197.0,4196.9,2.38271104]
[1758633667595,3.34135879,4197.0,4196.9,2.38271104]
[1758633667804,3.22295879,4197.0,4196.9,3.08021104]
[1758633668105,7.20495879,4197.0,4196.9,3.08021104]
[1758633668311,0.22295879,4197.0,4196.9,3.08021104]
[1758633668600,4.20595879,4197.0,4196.9,3.08021104]
[1758633668797,4.20595879,4197.0,4196.9,3.30316983]
[1758633670377,3.983,4197.0,4196.9,3.30316983]
[1758633670668,4.20500858,4197.0,4196.9,3.30316983]
[1758633671463,3.982,4197.0,4196.9,3.30316983]
[1758633673629,3.982,4197.0,4196.9,3.05436983]
[1758633673820,4.20499806,4197.0,4196.9,2.60566983]
[1758633675310,4.20499806,4197.0,4196.9,3.06536983]
[1758633675465,3.982,4197.0,4196.9,3.29086983]
[1758633675797,0.001,4197.4,4197.3,2.38248397]
[1758633675998,4.20604734,4197.4,4197.3,2.4063088]
[1758633676172,4.20604734,4197.4,4197.3,3.2099088]
[1758633676517,4.20604734,4197.4,4197.3,2.5247088]
[1758633676696,4.20604734,4197.4,4197.3,2.50088397]
[1758633677097,4.20604734,4197.4,4197.3,2.96058397]
[1758633677617,4.33985175,4197.4,4197.3,2.96058397]
[1758633678311,4.33985175,4197.4,4197.3,3.18608397]
[1758633678525,4.33979497,4197.4,4197.3,17.68608397]
[1758633679271,0.35779497,4197.4,4197.3,17.68608397]
[1758633679442,4.11580441,4197.4,4197.3,17.68608397]
[1758633679840,4.11580441,4197.4,4197.3,17.00088397]
[1758633680666,0.001,4197.4,4197.3,17.68608397]
[1758633681682,0.001,4197.4,4197.3,21.66708397]
[1758633683677,0.001,4197.4,4197.3,22.45908397]
[1758633684020,1e-08,4198.2,4198.1,2.38202996]
[1758633684173,1e-08,4198.2,4198.1,6.38685025]
[1758633684380,1e-08,4198.2,4198.1,6.48142996]
[1758633684707,1e-08,4198.2,4198.1,7.88285887]
[1758633684875,1e-08,4198.2,4198.1,22.38285887]
[1758633690261,1e-08,4198.2,4198.1,26.17485887]
[1758633690481,0.00020001,4198.7,4198.6,2.38174629]
[1758633690685,0.00020001,4198.7,4198.6,6.36174629]
[1758633690890,0.00020001,4198.7,4198.6,6.48014629]
[1758633691089,0.00020001,4198.7,4198.6,21.29224957]
[1758633691400,0.00020001,4198.7,4198.6,20.98014629]
[1758633692187,0.00020001,4198.7,4198.6,21.21754629]
[1758633693469,0.00020001,4198.7,4198.6,21.67724629]
[1758633693688,0.00020001,4198.7,4198.6,21.90274629]
[1758633693872,0.00020001,4198.7,4198.6,21.67724629]
[1758633694797,0.00020001,4198.7,4198.6,21.21754629]
[1758633695302,0.70340001,4198.7,4198.6,21.21754629]
[1758633696105,0.23760001,4198.7,4198.6,17.23754629]
[1758633696272,0.70340001,4198.7,4198.6,2.73754629]
[1758633696807,0.70340001,4198.7,4198.6,17.23754629]
[1758633698102,0.70340001,4198.7,4198.6,17.19188593]
[1758633698504,0.23760001,4198.7,4198.6,17.19188593]
[1758633700304,0.70340001,4198.7,4198.6,17.19188593]
[1758633700771,0.00020001,4198.7,4198.6,17.19188593]
[1758633701586,0.00020001,4198.7,4198.6,17.65138593]
[1758633701792,0.00020001,4198.7,4198.6,17.89618593]
[1758633702404,0.00020001,4198.7,4198.6,17.19188593]
[1758633702804,0.00020001,4198.7,4198.6,16.95448593]
[1758633705288,0.00020001,4198.7,4198.6,17.41398593]
[1758633705813,0.00020001,4198.7,4198.6,16.95448593]
[1758633706012,0.25000001,4198.7,4198.6,16.95448593]
[1758633706429,0.00020001,4198.7,4198.6,16.95448593]
[1758633709529,0.25000001,4198.7,4198.6,16.95448593]
[1758633709743,0.8508277,4198.7,4198.6,16.95448593]
[1758633710231,10.62411084,4198.7,4198.6,16.95448593]
[1758633713098,10.62411084,4198.7,4198.6,2.45448593]
[1758633713599,10.62411084,4198.7,4198.6,16.95448593]
[1758633715033,0.1339277,4198.7,4198.6,16.95448593]
[1758633715230,1e-08,4198.7,4198.6,21.63778593]
[1758633715431,0.01920001,4198.9,4198.8,2.38163284]
[1758633715835,0.001,4199.1,4198.8,2.38163284]
[1758633715836,0.001,4199.1,4199.0,2.3815194]
[1758633716041,0.2242333,4199.1,4199.0,2.40533459]
[1758633716212,0.2242333,4199.1,4199.0,3.10963459]
[1758633716602,0.2242333,4199.1,4199.0,17.60963459]
[1758633716804,0.2242333,4199.1,4199.0,17.5858194]
[1758633717235,0.001,4199.1,4199.0,17.5858194]
[1758633718036,0.001,4199.1,4199.0,21.5648194]
[1758633718808,0.001,4199.1,4199.0,20.8605194]
[1758633718809,0.2508,4199.1,4199.0,20.8605194]
[1758633721121,0.2508,4199.1,4199.0,16.8815194]
[1758633721642,0.7179,4199.1,4199.0,16.8815194]
[1758633721820,0.2508,4199.1,4199.0,16.8815194]
[1758633722824,0.001,4199.1,4199.0,16.8815194]
[1758633723040,0.001,4199.1,4199.0,17.3410194]
[1758633723245,0.001,4199.1,4199.0,17.5858194]
[1758633724160,1e-08,4199.6,4199.5,2.38123586]
[1758633724345,1e-08,4199.6,4199.5,7.06453586]
[1758633724844,1e-08,4199.6,4199.5,21.56453586]
[1758633725457,1e-08,4199.6,4199.5,16.88123586]
[1758633725633,1e-08,4199.6,4199.5,20.97863586]
[1758633725957,1e-08,4199.6,4199.5,21.68293586]
[1758633730642,1e-08,4199.9,4199.8,2.38106576]
[1758633730847,1e-08,4199.9,4199.8,6.50127641]
[1758633731144,1e-08,4200.2,4199.9,0.792]
[1758633731337,1e-08,4200.2,4200.1,2.49929569]
[1758633731666,1e-08,4200.2,4200.1,16.99929569]
[1758633731867,1e-08,4200.2,4200.1,17.72189569]
[1758633732660,1e-08,4200.2,4200.1,18.51389569]
[1758633733455,1e-08,4200.2,4200.1,17.79129569]
[1758633734438,1e-08,4200.2,4200.1,18.26429569]
[1758633736385,1e-08,4200.2,4200.1,20.12429569]
[1758633737686,1e-08,4200.2,4200.1,20.35769569]
[1758633738187,1e-08,4200.2,4200.1,19.09269569]
[1758633738368,1e-08,4200.2,4200.1,22.83729569]
[1758633740588,0.001,4200.6,4200.5,2.38066896]
[1758633740761,0.001,4200.6,4200.5,6.50087564]
[1758633740960,0.001,4200.6,4200.5,6.47706896]
[1758633744916,0.2334,4200.6,4200.5,6.47706896]
[1758633745717,0.001,4200.6,4200.5,6.47706896]
[1758633746138,0.001,4200.6,4200.5,6.95006896]
[1758633746322,0.001,4200.6,4200.5,6.47706896]